[Event "ONJK 2024 ABC"]
[Site "Velp, Netherlands"]
[Date "2024.08.06"]
[Round "6.20"]
[White "Bloemberg, Jesper"]
[Black "Zeenni, Joseph"]
[Result "1-0"]
[TimeControl "90 minutes + 30 seconds"]
[WhiteElo "1692"]
[BlackElo "1688"]

1. d4 {[%clk 01:30:53]} {[%emt 00:00:06]} Nf6 {[%clk 01:30:41]} {[%emt
00:00:20]} 2. c4 {[%clk 01:31:14]} {[%emt 00:00:09]} e6 {[%clk 01:31:04]}
{[%emt 00:00:07]} 3. Nf3 {[%clk 01:31:36]} {[%emt 00:00:08]} d5 {[%clk
01:31:25]} {[%emt 00:00:09]} 4. Nc3 {[%clk 01:31:51]} {[%emt 00:00:15]} Bb4
{[%clk 01:29:59]} {[%emt 00:01:56]} 5. Bg5 {[%clk 01:29:47]} {[%emt 00:02:33]}
O-O {[%clk 01:29:07]} {[%emt 00:01:23]} 6. e3 {[%clk 01:29:27]} {[%emt
00:00:49]} h6 {[%clk 01:24:34]} {[%emt 00:05:04]} 7. Bh4 {[%clk 01:28:46]}
{[%emt 00:01:10]} c5 {[%clk 01:21:49]} {[%emt 00:03:16]} 8. Bd3 {[%clk
01:27:05]} {[%emt 00:02:11]} dxc4 {[%clk 01:20:52]} {[%emt 00:01:28]} 9. Bxc4
{[%clk 01:27:12]} {[%emt 00:00:21]} cxd4 {[%clk 01:20:06]} {[%emt 00:01:16]} 10.
exd4 {[%clk 01:26:46]} {[%emt 00:00:56]} a6 {[%clk 01:19:06]} {[%emt 00:01:31]}
11. O-O {[%clk 01:25:10]} {[%emt 00:02:05]} b5 {[%clk 01:19:21]} {[%emt
00:00:16]} 12. Bb3 {[%clk 01:22:56]} {[%emt 00:02:43]} Bb7 {[%clk 01:18:49]}
{[%emt 00:01:04]} 13. Qe2 {[%clk 01:20:30]} {[%emt 00:02:55]} Nc6 {[%clk
01:08:46]} {[%emt 00:10:33]} 14. Rfd1 {[%clk 01:17:23]} {[%emt 00:03:36]} Re8
{[%clk 00:58:00]} {[%emt 00:11:17]} 15. a4 {[%clk 01:09:44]} {[%emt 00:08:09]}
bxa4 {[%clk 00:46:25]} {[%emt 00:12:06]} 16. Bxa4 {[%clk 01:08:52]} {[%emt
00:01:21]} a5 {[%clk 00:46:15]} {[%emt 00:00:39]} 17. Rac1 {[%clk 01:04:45]}
{[%emt 00:04:38]} g5 {[%clk 00:41:41]} {[%emt 00:05:04]} 18. Bg3 {[%clk
01:03:08]} {[%emt 00:02:06]} Nh5 {[%clk 00:41:53]} {[%emt 00:00:19]} 19. Ne5
{[%clk 01:01:04]} {[%emt 00:02:34]} Nxg3 {[%clk 00:36:23]} {[%emt 00:05:59]} 20.
hxg3 {[%clk 01:00:58]} {[%emt 00:00:37]} Rc8 {[%clk 00:35:23]} {[%emt
00:01:30]} 21. Qh5 {[%clk 00:59:09]} {[%emt 00:02:16]} Qf6 {[%clk 00:33:25]}
{[%emt 00:02:31]} 22. Ne4 {[%clk 00:57:15]} {[%emt 00:02:24]} Qg7 {[%clk
00:25:23]} {[%emt 00:08:32]} 23. Bxc6 {[%clk 00:56:46]} {[%emt 00:00:58]} Bxc6
{[%clk 00:25:35]} {[%emt 00:00:19]} 24. Nxc6 {[%clk 00:56:35]} {[%emt
00:00:41]} f5 {[%clk 00:24:56]} {[%emt 00:01:09]} 25. Nxb4 {[%clk 00:55:28]}
{[%emt 00:01:37]} fxe4 {[%clk 00:22:55]} {[%emt 00:02:31]} 26. Nc6 {[%clk
00:54:14]} {[%emt 00:01:43]} Qd7 {[%clk 00:19:46]} {[%emt 00:03:39]} 27. Qg6+
{[%clk 00:54:26]} {[%emt 00:00:18]} Kf8 {[%clk 00:19:08]} {[%emt 00:01:09]} 28.
Qxh6+ {[%clk 00:54:40]} {[%emt 00:00:15]} Kg8 {[%clk 00:19:25]} {[%emt
00:00:14]} 29. Qxg5+ {[%clk 00:54:36]} {[%emt 00:00:33]} Kh8 {[%clk 00:19:21]}
{[%emt 00:00:35]} 30. Qf6+ {[%clk 00:53:44]} {[%emt 00:01:21]} Kh7 {[%clk
00:19:29]} {[%emt 00:00:23]} 31. Rc5 {[%clk 00:53:48]} {[%emt 00:00:26]} 1-0

[Event "ONJK 2024 ABC"]
[Site "Velp, Netherlands"]
[Date "2024.08.07"]
[Round "7.1"]
[White "Leenen, Boyd"]
[Black "Musabayeva, Diana"]
[Result "1/2-1/2"]
[TimeControl "90 minutes + 30 seconds"]
[WhiteElo "1921"]
[BlackElo "1871"]

1. d4 {[%clk 01:30:59]} Nf6 {[%clk 01:30:59]} {[%emt 00:00:01]} 2. c4 {[%clk
01:30:49]} {[%emt 00:00:40]} e6 {[%clk 01:31:28]} {[%emt 00:00:01]} 3. Nc3
{[%clk 01:31:14]} {[%emt 00:00:05]} Bb4 {[%clk 01:31:53]} {[%emt 00:00:05]} 4.
f3 {[%clk 01:31:37]} {[%emt 00:00:07]} d5 {[%clk 01:30:44]} {[%emt 00:01:38]} 5.
a3 {[%clk 01:31:44]} {[%emt 00:00:23]} Bxc3+ {[%clk 01:28:56]} {[%emt
00:02:18]} 6. bxc3 {[%clk 01:32:09]} {[%emt 00:00:05]} b6 {[%clk 01:26:32]}
{[%emt 00:02:54]} 7. cxd5 {[%clk 01:31:17]} {[%emt 00:01:23]} exd5 {[%clk
01:26:30]} {[%emt 00:00:32]} 8. e3 {[%clk 01:31:05]} {[%emt 00:00:41]} O-O
{[%clk 01:22:26]} {[%emt 00:04:34]} 9. Bd3 {[%clk 01:30:28]} {[%emt 00:01:08]}
Re8 {[%clk 01:19:04]} {[%emt 00:03:52]} 10. Ne2 {[%clk 01:28:51]} {[%emt
00:02:06]} Ba6 {[%clk 01:15:57]} {[%emt 00:03:38]} 11. Bxa6 {[%clk 01:26:11]}
{[%emt 00:03:11]} Nxa6 {[%clk 01:16:25]} {[%emt 00:00:02]} 12. Qd3 {[%clk
01:26:30]} {[%emt 00:00:10]} Qc8 {[%clk 01:07:22]} {[%emt 00:09:33]} 13. O-O
{[%clk 01:25:46]} {[%emt 00:01:14]} c5 {[%clk 01:03:12]} {[%emt 00:04:40]} 14.
Bd2 {[%clk 01:25:24]} {[%emt 00:00:53]} Nb8 {[%clk 00:57:03]} {[%emt 00:06:39]}
15. Ng3 {[%clk 01:25:24]} {[%emt 00:00:30]} Nc6 {[%clk 00:55:26]} {[%emt
00:02:07]} 16. Rad1 {[%clk 01:20:45]} {[%emt 00:05:07]} Na5 {[%clk 00:49:20]}
{[%emt 00:06:39]} 17. e4 {[%clk 01:11:42]} {[%emt 00:09:32]} Nc4 {[%clk
00:46:37]} {[%emt 00:03:12]} 18. Bc1 {[%clk 01:11:33]} {[%emt 00:00:39]} b5
{[%clk 00:46:21]} {[%emt 00:00:47]} 19. e5 {[%clk 01:06:42]} {[%emt 00:05:20]}
Nd7 {[%clk 00:46:03]} {[%emt 00:00:47]} 20. f4 {[%clk 01:06:30]} {[%emt
00:00:43]} a5 {[%clk 00:43:31]} {[%emt 00:03:02]} 21. f5 {[%clk 01:02:27]}
{[%emt 00:04:32]} cxd4 {[%clk 00:42:31]} {[%emt 00:01:29]} 22. cxd4 {[%clk
01:01:24]} {[%emt 00:01:34]} b4 {[%clk 00:41:23]} {[%emt 00:01:38]} 23. axb4
{[%clk 01:01:37]} {[%emt 00:00:17]} axb4 {[%clk 00:41:48]} {[%emt 00:00:06]} 24.
f6 {[%clk 01:00:14]} {[%emt 00:01:52]} g6 {[%clk 00:40:46]} {[%emt 00:01:31]}
25. Nf5 {[%clk 00:55:24]} {[%emt 00:05:21]} Kh8 {[%clk 00:39:13]} {[%emt
00:02:03]} 26. Ne7 {[%clk 00:50:38]} {[%emt 00:05:16]} Rxe7 {[%clk 00:35:49]}
{[%emt 00:03:54]} 27. fxe7 {[%clk 00:49:58]} {[%emt 00:01:10]} Qe8 {[%clk
00:36:02]} {[%emt 00:00:16]} 28. Qf3 {[%clk 00:47:56]} {[%emt 00:02:30]} Qxe7
{[%clk 00:35:05]} {[%emt 00:01:31]} 29. Qxd5 {[%clk 00:47:49]} {[%emt
00:00:36]} Ndb6 {[%clk 00:34:03]} {[%emt 00:01:31]} 30. Qf3 {[%clk 00:47:28]}
{[%emt 00:00:48]} Kg8 {[%clk 00:31:36]} {[%emt 00:03:00]} 31. Qg3 {[%clk
00:38:48]} {[%emt 00:09:11]} Nd5 {[%clk 00:29:19]} {[%emt 00:02:46]} 32. Bg5
{[%clk 00:37:08]} {[%emt 00:02:10]} Qa7 {[%clk 00:25:27]} {[%emt 00:04:22]} 33.
Qb3 {[%clk 00:35:00]} {[%emt 00:02:36]} Qa6 {[%clk 00:24:15]} {[%emt 00:01:43]}
34. Ra1 {[%clk 00:28:46]} {[%emt 00:06:44]} Qxa1 {[%clk 00:24:11]} {[%emt
00:00:34]} 35. Rxa1 {[%clk 00:29:02]} {[%emt 00:00:15]} Rxa1+ {[%clk 00:24:34]}
{[%emt 00:00:08]} 36. Kf2 {[%clk 00:29:24]} {[%emt 00:00:07]} Ncb6 {[%clk
00:21:49]} {[%emt 00:03:14]} 37. Qb2 {[%clk 00:17:33]} {[%emt 00:12:21]} Ra3
{[%clk 00:18:45]} {[%emt 00:03:35]} 38. Bf6 {[%clk 00:15:19]} {[%emt 00:02:44]}
Na4 {[%clk 00:15:29]} {[%emt 00:03:45]} 39. Qc1 {[%clk 00:14:52]} {[%emt
00:00:58]} Nac3 {[%clk 00:14:48]} {[%emt 00:01:12]} 40. Qh6 {[%clk 00:12:21]}
{[%emt 00:03:00]} Nxf6 {[%clk 00:14:41]} {[%emt 00:00:36]} 41. exf6 {[%clk
00:12:48]} {[%emt 00:00:04]} Ne4+ {[%clk 00:15:02]} {[%emt 00:00:09]} 42. Ke2
{[%clk 00:11:41]} {[%emt 00:01:35]} Nxf6 {[%clk 00:15:21]} {[%emt 00:00:13]} 43.
Qf4 {[%clk 00:11:53]} {[%emt 00:00:16]} Kg7 {[%clk 00:13:32]} {[%emt 00:02:21]}
44. Kd1 {[%clk 00:08:19]} {[%emt 00:04:03]} Ra1+ {[%clk 00:10:08]} {[%emt
00:03:54]} 45. Kc2 {[%clk 00:08:41]} {[%emt 00:00:07]} Ra2+ {[%clk 00:10:09]}
{[%emt 00:00:31]} 46. Kb3 {[%clk 00:09:04]} {[%emt 00:00:05]} Rxg2 {[%clk
00:10:29]} {[%emt 00:00:11]} 47. Qe5 {[%clk 00:09:22]} {[%emt 00:00:11]} h6
{[%clk 00:09:03]} {[%emt 00:01:58]} 48. Kxb4 {[%clk 00:09:32]} {[%emt
00:00:20]} Rg5 {[%clk 00:09:04]} {[%emt 00:00:28]} 49. Qe2 {[%clk 00:09:33]}
{[%emt 00:00:28]} Rd5 {[%clk 00:07:50]} {[%emt 00:01:44]} 50. Kc4 {[%clk
00:09:56]} {[%emt 00:00:08]} Rf5 {[%clk 00:07:42]} {[%emt 00:00:37]} 51. Qe7
{[%clk 00:09:29]} {[%emt 00:00:58]} Nd5 {[%clk 00:07:45]} {[%emt 00:00:27]} 52.
Qe4 {[%clk 00:09:03]} {[%emt 00:00:52]} Nb6+ {[%clk 00:07:25]} {[%emt
00:00:52]} 53. Kd3 {[%clk 00:09:07]} {[%emt 00:00:28]} Nd5 {[%clk 00:07:22]}
{[%emt 00:00:33]} 54. Qg4 {[%clk 00:07:58]} {[%emt 00:01:33]} Nf6 {[%clk
00:07:12]} {[%emt 00:00:45]} 55. Qg2 {[%clk 00:08:09]} {[%emt 00:00:15]} g5
{[%clk 00:06:49]} {[%emt 00:00:58]} 56. h4 {[%clk 00:07:42]} {[%emt 00:00:54]}
Kg6 {[%clk 00:06:40]} {[%emt 00:00:42]} 57. hxg5 {[%clk 00:07:27]} {[%emt
00:00:45]} hxg5 {[%clk 00:06:17]} {[%emt 00:00:53]} 58. Ke3 {[%clk 00:07:42]}
{[%emt 00:00:15]} g4 {[%clk 00:05:52]} {[%emt 00:00:55]} 59. Qh2 {[%clk
00:06:59]} {[%emt 00:01:13]} Rf3+ {[%clk 00:05:27]} {[%emt 00:00:56]} 60. Ke2
{[%clk 00:07:14]} {[%emt 00:00:14]} Rh3 {[%clk 00:04:53]} {[%emt 00:01:04]} 61.
Qf4 {[%clk 00:07:27]} {[%emt 00:00:13]} Rh5 {[%clk 00:04:25]} {[%emt 00:01:02]}
62. Qg3 {[%clk 00:07:26]} {[%emt 00:00:31]} Rg5 {[%clk 00:04:12]} {[%emt
00:00:44]} 63. Kf1 {[%clk 00:06:27]} {[%emt 00:01:26]} Rd5 {[%clk 00:02:35]}
{[%emt 00:02:09]} 64. Qe3 {[%clk 00:06:23]} {[%emt 00:00:32]} Rf5+ {[%clk
00:02:17]} {[%emt 00:00:51]} 1/2-1/2

[Event "ONJK 2024 ABC"]
[Site "Velp, Netherlands"]
[Date "2024.08.07"]
[Round "7.2"]
[White "Decraene, Lotus"]
[Black "Elferink, Leon"]
[Result "1/2-1/2"]
[TimeControl "90 minutes + 30 seconds"]
[WhiteElo "1799"]
[BlackElo "1900"]

1. e4 {[%clk 01:30:59]} e5 {[%clk 01:30:55]} {[%emt 00:00:06]} 2. Nf3 {[%clk
01:31:22]} {[%emt 00:00:06]} Nc6 {[%clk 01:31:19]} {[%emt 00:00:06]} 3. Bc4
{[%clk 01:31:46]} {[%emt 00:00:06]} Bc5 {[%clk 01:31:45]} {[%emt 00:00:04]} 4.
Nc3 {[%clk 01:32:07]} {[%emt 00:00:09]} d6 {[%clk 01:30:41]} {[%emt 00:01:34]}
5. d3 {[%clk 01:32:21]} {[%emt 00:00:15]} h6 {[%clk 01:28:51]} {[%emt
00:02:20]} 6. Be3 {[%clk 01:32:25]} {[%emt 00:00:25]} Bb6 {[%clk 01:28:45]}
{[%emt 00:00:36]} 7. h3 {[%clk 01:30:55]} {[%emt 00:02:00]} Nf6 {[%clk
01:24:53]} {[%emt 00:04:23]} 8. d4 {[%clk 01:28:43]} {[%emt 00:02:42]} exd4
{[%clk 01:19:57]} {[%emt 00:05:26]} 9. Nxd4 {[%clk 01:28:49]} {[%emt 00:00:24]}
O-O {[%clk 01:13:44]} {[%emt 00:06:43]} 10. Qd2 {[%clk 01:26:53]} {[%emt
00:02:26]} Qe7 {[%clk 01:04:01]} {[%emt 00:10:14]} 11. f3 {[%clk 01:25:37]}
{[%emt 00:01:46]} Nxd4 {[%clk 01:01:22]} {[%emt 00:03:08]} 12. Bxd4 {[%clk
01:25:46]} {[%emt 00:00:21]} Be6 {[%clk 01:00:16]} {[%emt 00:01:36]} 13. Bb3
{[%clk 01:16:26]} {[%emt 00:09:49]} Rad8 {[%clk 00:55:56]} {[%emt 00:04:51]} 14.
O-O-O {[%clk 01:15:20]} {[%emt 00:01:36]} Bxb3 {[%clk 00:50:37]} {[%emt
00:05:49]} 15. axb3 {[%clk 01:14:37]} {[%emt 00:01:14]} Rfe8 {[%clk 00:48:40]}
{[%emt 00:02:26]} 16. g4 {[%clk 00:58:21]} {[%emt 00:16:46]} c6 {[%clk
00:30:54]} {[%emt 00:18:17]} 17. Qf4 {[%clk 00:41:40]} {[%emt 00:17:10]} Bxd4
{[%clk 00:29:28]} {[%emt 00:01:57]} 18. Rxd4 {[%clk 00:42:02]} {[%emt
00:00:08]} Qe5 {[%clk 00:29:23]} {[%emt 00:00:34]} 19. Qxe5 {[%clk 00:42:06]}
{[%emt 00:00:26]} dxe5 {[%clk 00:29:44]} {[%emt 00:00:10]} 20. Rxd8 {[%clk
00:42:15]} {[%emt 00:00:21]} Rxd8 {[%clk 00:29:45]} {[%emt 00:00:29]} 21. Rd1
{[%clk 00:42:31]} {[%emt 00:00:13]} 1/2-1/2

[Event "ONJK 2024 ABC"]
[Site "Velp, Netherlands"]
[Date "2024.08.07"]
[Round "7.3"]
[White "Rogozyanskiy, Alexander"]
[Black "Hesse, Lucas"]
[Result "1-0"]
[TimeControl "90 minutes + 30 seconds"]
[WhiteElo "1803"]
[BlackElo "1708"]

1. e4 {[%clk 01:30:57]} {[%emt 00:00:02]} d5 {[%clk 01:30:29]} {[%emt
00:00:32]} 2. exd5 {[%clk 01:31:20]} {[%emt 00:00:08]} Qxd5 {[%clk 01:30:52]}
{[%emt 00:00:06]} 3. Nc3 {[%clk 01:31:44]} {[%emt 00:00:05]} Qa5 {[%clk
01:31:17]} {[%emt 00:00:06]} 4. Bc4 {[%clk 01:32:08]} {[%emt 00:00:05]} Nf6
{[%clk 01:31:16]} {[%emt 00:00:31]} 5. d3 {[%clk 01:32:31]} {[%emt 00:00:07]}
c6 {[%clk 01:31:40]} {[%emt 00:00:06]} 6. Bd2 {[%clk 01:32:51]} {[%emt
00:00:10]} Qc7 {[%clk 01:32:07]} {[%emt 00:00:05]} 7. Qe2 {[%clk 01:32:33]}
{[%emt 00:00:46]} g6 {[%clk 01:31:14]} {[%emt 00:01:24]} 8. O-O-O {[%clk
01:31:49]} {[%emt 00:01:14]} Bg7 {[%clk 01:27:26]} {[%emt 00:04:18]} 9. Re1
{[%clk 01:31:27]} {[%emt 00:00:51]} e6 {[%clk 01:27:46]} {[%emt 00:00:12]} 10.
h4 {[%clk 01:29:49]} {[%emt 00:02:07]} O-O {[%clk 01:26:12]} {[%emt 00:02:05]}
11. g4 {[%clk 01:28:58]} {[%emt 00:01:20]} e5 {[%clk 01:24:14]} {[%emt
00:02:28]} 12. f3 {[%clk 01:28:58]} {[%emt 00:00:29]} b5 {[%clk 01:22:20]}
{[%emt 00:02:26]} 13. Bb3 {[%clk 01:28:19]} {[%emt 00:01:07]} a5 {[%clk
01:21:24]} {[%emt 00:01:28]} 14. a4 {[%clk 01:27:32]} {[%emt 00:01:16]} Ba6
{[%clk 01:19:15]} {[%emt 00:02:39]} 15. h5 {[%clk 01:27:05]} {[%emt 00:00:56]}
e4 {[%clk 01:07:42]} {[%emt 00:12:04]} 16. fxe4 {[%clk 01:25:26]} {[%emt
00:02:09]} Nbd7 {[%clk 01:06:25]} {[%emt 00:01:47]} 17. hxg6 {[%clk 01:24:40]}
{[%emt 00:01:16]} hxg6 {[%clk 01:06:17]} {[%emt 00:00:38]} 18. e5 {[%clk
01:24:13]} {[%emt 00:00:58]} Nd5 {[%clk 01:02:51]} {[%emt 00:03:56]} 19. Qh2
{[%clk 01:24:07]} {[%emt 00:00:35]} Rfe8 {[%clk 01:03:03]} {[%emt 00:00:18]} 20.
Qh7+ {[%clk 01:23:59]} {[%emt 00:00:38]} Kf8 {[%clk 01:03:06]} {[%emt
00:00:27]} 21. Bh6 {[%clk 01:24:09]} {[%emt 00:00:19]} Ke7 {[%clk 00:57:15]}
{[%emt 00:06:22]} 22. Qxg7 {[%clk 01:23:23]} {[%emt 00:01:15]} Rg8 {[%clk
00:53:52]} {[%emt 00:03:54]} 23. Bg5+ {[%clk 01:23:39]} {[%emt 00:00:13]} Ke6
{[%clk 00:53:41]} {[%emt 00:00:42]} 24. Nf3 {[%clk 01:21:53]} {[%emt 00:02:16]}
Qa7 {[%clk 00:52:33]} {[%emt 00:01:39]} 25. Nxd5 {[%clk 01:21:44]} {[%emt
00:00:38]} cxd5 {[%clk 00:49:43]} {[%emt 00:03:21]} 26. Bxd5+ {[%clk 01:22:04]}
{[%emt 00:00:09]} Kxd5 {[%clk 00:50:03]} {[%emt 00:00:10]} 27. Qxf7+ {[%clk
01:22:29]} {[%emt 00:00:05]} Kc6 {[%clk 00:50:10]} {[%emt 00:00:23]} 28. Qe6+
{[%clk 01:22:52]} {[%emt 00:00:07]} Kc7 {[%clk 00:47:08]} {[%emt 00:03:33]} 29.
Rh7 {[%clk 01:23:13]} {[%emt 00:00:08]} Rad8 {[%clk 00:46:24]} {[%emt
00:01:14]} 30. Bxd8+ {[%clk 01:22:53]} {[%emt 00:00:50]} Rxd8 {[%clk 00:46:47]}
{[%emt 00:00:08]} 31. Qd6+ {[%clk 01:23:20]} {[%emt 00:00:02]} Kc8 {[%clk
00:46:53]} {[%emt 00:00:24]} 32. e6 {[%clk 01:23:37]} {[%emt 00:00:12]} 1-0

[Event "ONJK 2024 ABC"]
[Site "Velp, Netherlands"]
[Date "2024.08.07"]
[Round "7.5"]
[White "Faybish, Dana"]
[Black "Bernfeld, Ben"]
[Result "1-0"]
[TimeControl "90 minutes + 30 seconds"]
[WhiteElo "1707"]
[BlackElo "1438"]

1. e4 {[%clk 01:30:54]} {[%emt 00:00:04]} e5 {[%clk 01:30:58]} {[%emt
00:00:04]} 2. Nf3 {[%clk 01:31:04]} {[%emt 00:00:20]} Nc6 {[%clk 01:31:09]}
{[%emt 00:00:19]} 3. Bc4 {[%clk 01:31:08]} {[%emt 00:00:25]} Nf6 {[%clk
01:31:22]} {[%emt 00:00:17]} 4. d3 {[%clk 01:31:11]} {[%emt 00:00:27]} Bc5
{[%clk 01:31:46]} {[%emt 00:00:07]} 5. O-O {[%clk 01:31:23]} {[%emt 00:00:17]}
d6 {[%clk 01:32:10]} {[%emt 00:00:06]} 6. c3 {[%clk 01:31:15]} {[%emt
00:00:39]} Bg4 {[%clk 01:31:55]} {[%emt 00:00:44]} 7. Nbd2 {[%clk 01:29:53]}
{[%emt 00:01:52]} O-O {[%clk 01:29:39]} {[%emt 00:02:46]} 8. h3 {[%clk
01:29:23]} {[%emt 00:01:00]} Bh5 {[%clk 01:28:24]} {[%emt 00:01:45]} 9. Re1
{[%clk 01:28:35]} {[%emt 00:01:17]} Qd7 {[%clk 01:26:52]} {[%emt 00:02:03]} 10.
Bb3 {[%clk 01:28:03]} {[%emt 00:01:03]} h6 {[%clk 01:23:47]} {[%emt 00:03:35]}
11. Nf1 {[%clk 01:27:19]} {[%emt 00:01:14]} Rae8 {[%clk 01:17:57]} {[%emt
00:06:20]} 12. Ng3 {[%clk 01:26:12]} {[%emt 00:01:36]} Bg6 {[%clk 01:17:11]}
{[%emt 00:01:16]} 13. Nh4 {[%clk 01:23:43]} {[%emt 00:02:59]} Kh8 {[%clk
01:16:22]} {[%emt 00:01:19]} 14. Qf3 {[%clk 01:21:23]} {[%emt 00:02:49]} Ne7
{[%clk 01:12:59]} {[%emt 00:03:55]} 15. Bxh6 {[%clk 01:17:48]} {[%emt
00:04:05]} gxh6 {[%clk 01:06:32]} {[%emt 00:06:56]} 16. Qxf6+ {[%clk 01:17:05]}
{[%emt 00:01:13]} Kh7 {[%clk 01:06:29]} {[%emt 00:00:33]} 17. a4 {[%clk
01:05:08]} {[%emt 00:12:27]} Qc6 {[%clk 00:59:49]} {[%emt 00:07:10]} 18. Ngf5
{[%clk 00:48:59]} {[%emt 00:16:38]} Nxf5 {[%clk 00:47:09]} {[%emt 00:13:11]} 19.
Nxf5 {[%clk 00:49:01]} {[%emt 00:00:29]} Bxf5 {[%clk 00:43:36]} {[%emt
00:04:02]} 20. Qxf5+ {[%clk 00:48:54]} {[%emt 00:00:37]} Kh8 {[%clk 00:39:26]}
{[%emt 00:04:41]} 21. Qf6+ {[%clk 00:37:32]} {[%emt 00:11:50]} Kg8 {[%clk
00:34:38]} {[%emt 00:05:19]} 22. Qg6+ {[%clk 00:37:42]} {[%emt 00:00:20]} Kh8
{[%clk 00:34:09]} {[%emt 00:01:00]} 23. Bxf7 {[%clk 00:37:34]} {[%emt
00:00:37]} d5 {[%clk 00:30:11]} {[%emt 00:04:29]} 24. Bxe8 {[%clk 00:29:14]}
{[%emt 00:08:50]} Bxf2+ {[%clk 00:28:00]} {[%emt 00:02:41]} 25. Kh1 {[%clk
00:29:03]} {[%emt 00:00:39]} Qxg6 {[%clk 00:24:40]} {[%emt 00:03:51]} 26. Bxg6
{[%clk 00:29:19]} {[%emt 00:00:15]} Bxe1 {[%clk 00:24:32]} {[%emt 00:00:37]} 27.
Rxe1 {[%clk 00:29:38]} {[%emt 00:00:11]} Rf2 {[%clk 00:24:07]} {[%emt
00:00:55]} 28. exd5 {[%clk 00:29:02]} {[%emt 00:01:07]} Rxb2 {[%clk 00:24:18]}
{[%emt 00:00:18]} 29. Rxe5 {[%clk 00:29:13]} {[%emt 00:00:20]} Ra2 {[%clk
00:24:05]} {[%emt 00:00:42]} 30. Re7 {[%clk 00:26:41]} {[%emt 00:03:00]} Rxa4
{[%clk 00:22:26]} {[%emt 00:02:12]} 31. Rxc7 {[%clk 00:26:46]} {[%emt
00:00:25]} a5 {[%clk 00:21:12]} {[%emt 00:01:44]} 32. d6 {[%clk 00:26:12]}
{[%emt 00:01:04]} 1-0